bitfinex-derivatives/quotes_BTCF0:USTF0_20241015
["timestamp","ask_amount","ask_price","bid_price","bid_amount"]
[1729034464474,0.435716,66744.0,66743.0,0.105917]
[1729034465270,0.438716,66744.0,66743.0,0.105917]
[1729034465462,0.441716,66744.0,66743.0,0.105917]
[1729034467955,0.441716,66744.0,66743.0,0.13244318]
[1729034469756,0.080916,66744.0,66743.0,0.13244318]
[1729034471054,0.080916,66744.0,66743.0,0.10144318]
[1729034473056,0.078916,66744.0,66743.0,0.10144318]
[1729034473961,0.076916,66744.0,66743.0,0.10144318]
[1729034474154,0.076916,66744.0,66743.0,0.09344318]
[1729034474555,0.078916,66744.0,66743.0,0.09344318]
[1729034474763,0.077916,66744.0,66743.0,0.09344318]
[1729034475056,0.080916,66744.0,66743.0,0.09344318]
[1729034479760,0.441716,66744.0,66743.0,0.09344318]
[1729034480459,0.080916,66744.0,66743.0,0.09344318]
[1729034482964,0.078916,66744.0,66743.0,0.09344318]
[1729034483963,0.001,66744.0,66743.0,0.09344318]
[1729034484168,0.003,66744.0,66743.0,0.09344318]
[1729034484558,0.002,66744.0,66743.0,0.09344318]
[1729034484867,0.006,66744.0,66743.0,0.09344318]
[1729034485257,0.003,66744.0,66743.0,0.09344318]
[1729034485464,0.003,66744.0,66743.0,0.09444318]
[1729034485862,0.3608,66745.0,66744.0,0.074916]
[1729034486064,0.3608,66745.0,66744.0,0.184916]
[1729034487069,0.435715,66745.0,66744.0,0.184916]
[1729034488464,0.437715,66745.0,66744.0,0.184916]
[1729034489469,0.076915,66745.0,66744.0,0.184916]
[1729034489661,0.076915,66745.0,66744.0,0.176916]
[1729034490568,0.075915,66745.0,66744.0,0.176916]
[1729034490756,0.002,66745.0,66744.0,0.176916]
[1729034491157,0.001,66745.0,66744.0,0.176916]
[1729034491361,0.002,66745.0,66744.0,0.176916]
[1729034492068,0.001,66745.0,66744.0,0.176916]
[1729034494067,0.002,66745.0,66744.0,0.176916]
[1729034494372,0.001,66745.0,66744.0,0.176916]
[1729034494771,0.436514,66747.0,66744.0,0.176916]
[1729034494971,0.435714,66747.0,66746.0,0.074914]
[1729034497167,0.3608,66747.0,66746.0,0.074914]
[1729034497370,0.3628,66747.0,66746.0,0.074914]
[1729034497778,0.3648,66747.0,66746.0,0.074914]
[1729034499773,0.004,66747.0,66746.0,0.074914]
[1729034504797,0.004,66747.0,66746.0,0.066914]
[1729034512603,0.3648,66747.0,66746.0,0.066914]
[1729034514403,0.439713,66747.0,66746.0,0.066914]
[1729034515795,0.074916,66744.0,66743.0,0.10144118]
[1729034515997,0.074916,66744.0,66743.0,0.074915]
[1729034517001,0.074916,66744.0,66743.0,0.075915]
[1729034517494,0.074916,66744.0,66743.0,0.076915]
[1729034519118,0.074916,66744.0,66743.0,0.075915]
[1729034520228,0.435714,66747.0,66746.0,0.066914]
[1729034520424,0.435714,66747.0,66746.0,0.176914]
[1729034521825,0.3608,66747.0,66746.0,0.176914]
[1729034522821,0.3638,66747.0,66746.0,0.176914]
[1729034523015,0.3658,66747.0,66746.0,0.176914]
[1729034523421,0.3638,66747.0,66746.0,0.176914]
[1729034523727,0.005,66747.0,66746.0,0.176914]
[1729034524119,0.002,66747.0,66746.0,0.176914]
[1729034524317,0.004,66747.0,66746.0,0.176914]
[1729034526925,0.004,66747.0,66746.0,0.20416613]
[1729034535820,0.004,66747.0,66746.0,0.19616613]
[1729034539209,0.004,66747.0,66746.0,0.08616613]
[1729034539515,0.004,66747.0,66746.0,0.19616613]
[1729034551127,0.004,66747.0,66746.0,0.18816613]
[1729034564830,0.004,66747.0,66746.0,0.07816613]
[1729034565034,0.004,66747.0,66746.0,0.18816613]
[1729034566433,0.004,66747.0,66746.0,0.18016613]
[1729034567533,0.004,66747.0,66746.0,0.07016613]
[1729034567727,0.004,66747.0,66746.0,0.18016613]
[1729034579342,0.04069743,66747.0,66746.0,0.18016613]
[1729034581659,0.004,66747.0,66746.0,0.18016613]
[1729034581862,0.004,66747.0,66746.0,0.17216613]
[1729034595762,0.04069708,66747.0,66746.0,0.17216613]
[1729034597166,0.04069708,66747.0,66746.0,0.13725213]
[1729034597576,0.04069708,66747.0,66746.0,0.21216613]
[1729034603675,0.004,66747.0,66746.0,0.21216613]
[1729034607374,0.3648,66747.0,66746.0,0.21216613]
[1729034610778,0.40149841,66747.0,66746.0,0.21216613]
[1729034611275,0.3648,66747.0,66746.0,0.21216613]
[1729034612585,0.3648,66747.0,66746.0,0.20416613]
[1729034616777,0.004,66747.0,66746.0,0.20416613]
[1729034616983,0.3648,66747.0,66746.0,0.20416613]
[1729034620884,0.004,66747.0,66746.0,0.20416613]
[1729034621091,0.3648,66747.0,66746.0,0.20416613]
[1729034622189,0.184896,66762.0,66746.0,0.20416613]
[1729034622190,0.435695,66763.0,66760.0,0.074898]
[1729034622391,0.0771445,66761.0,66760.0,0.074898]
[1729034623584,0.0821445,66761.0,66760.0,0.074898]
[1729034623783,0.1188368,66761.0,66760.0,0.074898]
[1729034623988,0.1238368,66761.0,66760.0,0.074898]
[1729034624290,0.0871445,66761.0,66760.0,0.074898]
[1729034624794,0.1238368,66761.0,66760.0,0.074898]
[1729034625490,0.0871445,66761.0,66760.0,0.074898]
[1729034625691,0.12383687,66761.0,66760.0,0.184898]
[1729034626784,0.0871445,66761.0,66760.0,0.21167485]
[1729034628003,0.0871445,66761.0,66760.0,0.20367485]
[1729034628295,0.4479445,66761.0,66760.0,0.20367485]
[1729034630298,0.48463754,66761.0,66760.0,0.20367485]
[1729034630892,0.4479445,66761.0,66760.0,0.20367485]
[1729034631100,0.0871445,66761.0,66760.0,0.20367485]
[1729034631396,0.4479445,66761.0,66760.0,0.20367485]
[1729034631799,0.0871445,66761.0,66760.0,0.20367485]
[1729034631991,0.4479445,66761.0,66760.0,0.20367485]
[1729034633495,0.0871445,66761.0,66760.0,0.20367485]
[1729034633702,0.4479445,66761.0,66760.0,0.20367485]
[1729034633902,0.48463849,66761.0,66760.0,0.20367485]
[1729034634999,0.12383849,66761.0,66760.0,0.20367485]
[1729034635198,0.48463849,66761.0,66760.0,0.09367485]
[1729034635999,0.12383849,66761.0,66760.0,0.09367485]
[1729034636202,0.48463849,66761.0,66760.0,0.09367485]
[1729034638100,0.48463855,66761.0,66760.0,0.09367485]
[1729034640606,0.53063211,66761.0,66760.0,0.09367485]
[1729034640904,0.48463855,66761.0,66760.0,0.09367485]
[1729034641700,0.48463902,66761.0,66760.0,0.09367485]
[1729034643313,0.48463902,66761.0,66760.0,0.08567485]
[1729034645611,0.48463902,66761.0,66760.0,0.19567485]
[1729034645806,0.40974202,66761.0,66760.0,0.19567485]
[1729034646108,0.3730475,66761.0,66760.0,0.30567485]
[1729034646507,0.436443,66774.0,66773.0,0.074884]
[1729034646707,0.4723702,66774.0,66773.0,0.184884]
[1729034646904,0.47236937,66774.0,66773.0,0.184884]
[1729034647100,0.435683,66774.0,66773.0,0.184884]
[1729034648010,0.441683,66774.0,66773.0,0.185884]
[1729034648514,0.448683,66774.0,66773.0,0.185884]
[1729034648709,0.013,66774.0,66773.0,0.185884]
[1729034648899,0.04193654,66774.0,66773.0,0.295884]
[1729034649104,0.04193654,66774.0,66773.0,0.185884]
[1729034651309,0.11681873,66774.0,66773.0,0.185884]
[1729034651510,0.04193573,66774.0,66773.0,0.185884]
[1729034652311,0.04193573,66774.0,66773.0,0.21242663]
[1729034653528,0.04193573,66774.0,66773.0,0.32242663]
[1729034653822,0.04193573,66774.0,66773.0,0.21242663]
[1729034654119,0.11681873,66774.0,66773.0,0.32242663]
[1729034654311,0.11681873,66774.0,66773.0,0.21242663]
[1729034655419,0.11681873,66774.0,66773.0,0.32242663]
[1729034655926,0.087883,66774.0,66773.0,0.32242663]
[1729034656920,0.013,66774.0,66773.0,0.21242663]
[1729034657427,0.013,66774.0,66773.0,0.32242663]
[1729034658718,0.013,66774.0,66773.0,0.31442663]
[1729034659530,0.087883,66774.0,66773.0,0.31442663]
[1729034660614,0.087883,66774.0,66773.0,0.20442663]
[1729034663120,0.448683,66774.0,66773.0,0.20442663]
[1729034663926,0.47761926,66774.0,66773.0,0.20442663]
[1729034665623,0.448683,66774.0,66773.0,0.20442663]
[1729034665927,0.47761896,66774.0,66773.0,0.20442663]
[1729034670825,0.47761924,66774.0,66773.0,0.20442663]
[1729034671922,0.40273624,66774.0,66773.0,0.20442663]
[1729034672123,0.47761924,66774.0,66773.0,0.20442663]
[1729034674024,0.47761924,66774.0,66773.0,0.19642663]
[1729034674919,0.40273624,66774.0,66773.0,0.19642663]
[1729034675128,0.40273624,66774.0,66773.0,0.30642663]
[1729034675332,0.00224668,66779.0,66773.0,0.60834263]
[1729034675524,0.00224668,66779.0,66778.0,0.184878]
[1729034676616,0.01224668,66779.0,66778.0,0.185878]
[1729034677634,0.02324668,66779.0,66778.0,0.185878]
[1729034679125,0.01224668,66779.0,66778.0,0.185878]
[1729034679331,0.01824668,66779.0,66778.0,0.186878]
[1729034680533,0.016,66779.0,66778.0,0.186878]
[1729034685434,0.0449325,66779.0,66778.0,0.186878]
[1729034687342,0.016,66779.0,66778.0,0.186878]
[1729034689338,0.04493319,66779.0,66778.0,0.178878]
[1729034691538,0.016,66779.0,66778.0,0.178878]
[1729034700150,0.074871,66785.0,66778.0,0.112]
[1729034700352,0.02893094,66784.0,66783.0,0.074873]
[1729034700547,0.02893094,66784.0,66783.0,0.184873]
[1729034701043,0.02893123,66784.0,66783.0,0.11]
[1729034701244,0.02893123,66784.0,66783.0,0.184873]
[1729034701643,0.06560817,66784.0,66783.0,0.294873]
[1729034701854,0.02892999,66784.0,66783.0,0.294873]
[1729034702046,0.02892999,66784.0,66783.0,0.184873]
[1729034702845,0.03592999,66784.0,66783.0,0.185873]
[1729034703354,0.07260555,66784.0,66783.0,0.185873]
[1729034703964,0.07260555,66784.0,66783.0,0.186873]
[1729034704168,0.07260505,66784.0,66783.0,0.186873]
[1729034704662,0.03592999,66784.0,66783.0,0.186873]
[1729034704862,0.03592999,66784.0,66783.0,0.178873]
[1729034705066,0.07260467,66784.0,66783.0,0.178873]
[1729034705254,0.07260405,66784.0,66783.0,0.178873]
[1729034705460,0.03592929,66784.0,66783.0,0.178873]
[1729034707758,0.07260398,66784.0,66783.0,0.178873]
[1729034707962,0.07260398,66784.0,66783.0,0.20537773]
[1729034708169,0.03592929,66784.0,66783.0,0.20537773]
[1729034712469,0.03592929,66784.0,66783.0,0.31537773]
[1729034712470,0.00876029,66784.0,66783.0,0.31537773]
[1729034712976,0.00876029,66784.0,66783.0,0.31437773]
[1729034719778,0.00876029,66784.0,66783.0,0.20437773]
[1729034720278,0.00876029,66784.0,66783.0,0.08637773]
[1729034720474,0.00876029,66784.0,66783.0,0.19637773]
[1729034721562,0.00176029,66784.0,66783.0,0.19637773]
[1729034721775,0.00176029,66784.0,66783.0,0.19837773]
[1729034723064,0.00176029,66784.0,66783.0,0.30837773]
[1729034723273,0.00176029,66784.0,66783.0,0.31037773]
[1729034723572,0.00176029,66784.0,66783.0,0.09037773]
[1729034723877,0.11330571,66784.0,66783.0,0.08937773]
[1729034724078,0.11330571,66784.0,66783.0,0.09237773]
[1729034724870,0.03843471,66784.0,66783.0,0.09237773]
[1729034725068,0.11154542,66784.0,66783.0,0.09237773]
[1729034725378,0.11330571,66784.0,66783.0,0.09237773]
[1729034725565,0.03843471,66784.0,66783.0,0.09237773]
[1729034725766,0.074871,66785.0,66784.0,0.074868]
[1729034726070,0.10380042,66785.0,66784.0,0.184868]
[1729034726871,0.10380042,66785.0,66784.0,0.187868]
[1729034727772,0.10380042,66785.0,66784.0,0.189868]
[1729034731674,0.46460042,66785.0,66784.0,0.189868]
[1729034732069,1.62380042,66785.0,66784.0,0.005]
[1729034732280,0.074886,66773.0,66772.0,0.074883]
[1729034732478,0.46461542,66773.0,66772.0,0.074883]
[1729034732782,0.074886,66771.0,66770.0,0.11497]
[1729034733083,0.10381542,66771.0,66770.0,0.189857]
[1729034733268,0.10381542,66771.0,66770.0,0.21729128]
[1729034734668,0.11082325,66771.0,66770.0,0.21829128]
[1729034735374,0.10382325,66771.0,66770.0,0.21729128]
[1729034735578,0.47162325,66771.0,66770.0,0.21029128]
[1729034736180,0.47262325,66771.0,66770.0,0.21129128]
[1729034737083,0.10482325,66771.0,66770.0,0.21029128]
[1729034737272,0.47162325,66771.0,66770.0,0.21029128]
[1729034737478,0.47262325,66771.0,66770.0,0.21129128]
[1729034743979,0.47262322,66771.0,66770.0,0.21129128]
[1729034744584,0.11182322,66771.0,66770.0,0.21129128]
[1729034745287,0.47262322,66771.0,66770.0,0.21129128]
[1729034746191,0.11182322,66771.0,66770.0,0.21129128]
[1729034746794,0.082886,66771.0,66770.0,0.21129128]
[1729034747591,0.008,66771.0,66770.0,0.21129128]
[1729034747887,0.35780064,66773.0,66772.0,0.074885]
[1729034749489,0.35880064,66773.0,66772.0,0.075885]
[1729034750384,0.35880064,66773.0,66772.0,0.076885]
[1729034750892,0.35880064,66773.0,66772.0,0.068885]
[1729034751685,0.001,66773.0,66772.0,0.068885]
[1729034752394,0.10482039,66773.0,66772.0,0.068885]
[1729034752994,0.10482103,66773.0,66772.0,0.068885]
[1729034753995,0.14150559,66773.0,66772.0,0.068885]
[1729034758399,0.06662159,66773.0,66772.0,0.068885]
[1729034759292,0.02993703,66773.0,66772.0,0.068885]
[1729034761391,0.0299348,66773.0,66772.0,0.068885]
[1729034764400,0.001,66773.0,66772.0,0.068885]
[1729034765799,0.074872,66785.0,66784.0,0.07487]
[1729034765995,0.10380575,66785.0,66784.0,0.07487]
[1729034766310,0.10380575,66785.0,66784.0,0.06687]
[1729034767204,0.02893375,66785.0,66784.0,0.17687]
[1729034767604,0.02893375,66785.0,66784.0,0.17887]
[1729034768199,0.02893375,66785.0,66784.0,0.20526749]
[1729034769111,0.02893375,66785.0,66784.0,0.20726749]
[1729034774317,0.436425,66790.0,66789.0,0.074866]
[1729034774523,0.50203096,66790.0,66789.0,0.184866]
[1729034774711,0.42640596,66790.0,66789.0,0.184866]
[1729034774912,0.38973013,66790.0,66789.0,0.294866]
[1729034775225,0.3608,66790.0,66789.0,0.294866]
[1729034776010,0.38972766,66790.0,66789.0,0.294866]
[1729034777314,0.38972766,66790.0,66789.0,0.184866]
[1729034777806,0.02892766,66790.0,66789.0,0.184866]
[1729034781622,0.02892766,66790.0,66789.0,0.176866]
[1729034784025,0.074861,66793.0,66792.0,0.074863]
[1729034784226,0.074861,66793.0,66792.0,0.184863]
[1729034786524,0.10378878,66793.0,66792.0,0.184863]
[1729034788924,0.10378878,66793.0,66792.0,0.21236516]
[1729034791229,0.14046164,66793.0,66792.0,0.21236516]
[1729034793719,0.06560064,66793.0,66792.0,0.21236516]
[1729034794521,0.15750067,66793.0,66792.0,0.21236516]
[1729034794734,0.18642845,66793.0,66792.0,0.21236516]
[1729034795327,0.11156745,66793.0,66792.0,0.21236516]
[1729034795724,0.18642845,66793.0,66792.0,0.21236516]
[1729034795930,0.18642828,66793.0,66792.0,0.21236516]
[1729034796227,0.14046147,66793.0,66792.0,0.21236516]
[1729034797035,0.14046147,66793.0,66792.0,0.20436516]
[1729034798430,0.14046147,66793.0,66792.0,0.10236516]
[1729034800132,0.074861,66793.0,66792.0,0.10236516]
[1729034800337,0.14046249,66793.0,66792.0,0.10236516]
[1729034802633,0.14046249,66793.0,66792.0,0.02750216]
[1729034802937,0.07487,66785.0,66784.0,0.07487]
[1729034803130,0.21379816,66785.0,66784.0,0.07487]
[1729034804034,0.25047577,66785.0,66784.0,0.07887]
[1729034805027,0.14047577,66785.0,66784.0,0.07887]
[1729034805244,0.10379816,66785.0,66784.0,0.07887]
[1729034805631,0.1404774,66785.0,66784.0,0.07887]
[1729034806034,0.0656074,66785.0,66784.0,0.07887]
[1729034806227,0.0656074,66785.0,66784.0,0.10907]
[1729034806228,0.02893077,66785.0,66784.0,0.10907]
[1729034812642,0.02893077,66785.0,66784.0,0.10107]
[1729034814135,0.06560623,66788.0,66784.0,0.10107]
[1729034814341,0.06560623,66787.0,66786.0,0.074869]
[1729034814541,0.06560623,66787.0,66786.0,0.184869]
[1729034819547,0.02893077,66787.0,66786.0,0.184869]
[1729034820445,0.02892989,66787.0,66786.0,0.184869]
[1729034823856,0.02892995,66787.0,66786.0,0.184869]
[1729034827868,0.02892995,66787.0,66786.0,0.176869]
[1729034829170,0.06560554,66787.0,66786.0,0.102]
[1729034829371,0.06560554,66787.0,66786.0,0.176869]
[1729034830374,0.1115759,66787.0,66786.0,0.102]
[1729034830571,0.1115759,66787.0,66786.0,0.176869]
[1729034832967,0.436506,66789.0,66788.0,0.074867]
[1729034833165,0.435666,66789.0,66788.0,0.074867]
[1729034833771,0.3608,66789.0,66788.0,0.074867]
[1729034833969,0.3608,66789.0,66788.0,0.184867]
[1729034834277,0.3608,66789.0,66788.0,0.185867]
[1729034834480,0.38972801,66789.0,66788.0,0.075867]
[1729034835273,0.38972801,66789.0,66788.0,0.185867]
[1729034835775,0.38972801,66789.0,66788.0,0.075867]
[1729034835972,0.38972801,66789.0,66788.0,0.185867]
[1729034836174,0.38972801,66789.0,66788.0,0.186867]
[1729034837871,0.38972801,66789.0,66788.0,0.076867]
[1729034838277,0.38972801,66789.0,66788.0,0.186867]
[1729034838478,0.38972801,66789.0,66788.0,0.076867]
[1729034838973,0.38972801,66789.0,66788.0,0.186867]
[1729034839173,0.38972801,66789.0,66788.0,0.076867]
[1729034843173,0.38972801,66789.0,66788.0,0.068867]
[1729034843680,0.02892801,66789.0,66788.0,0.068867]
[1729034844381,0.06560157,66789.0,66788.0,0.068867]
[1729034844678,0.0656019,66792.0,66788.0,0.068867]
[1729034844880,0.0656019,66791.0,66788.0,0.068867]
[1729034845077,0.03667356,66792.0,66790.0,0.11]
[1729034845284,0.03667356,66792.0,66791.0,0.074864]
[1729034845483,0.10227547,66792.0,66791.0,0.074864]
[1729034846479,0.10227547,66792.0,66791.0,0.075864]
[1729034846480,0.03667356,66792.0,66791.0,0.075864]
[1729034846983,0.03667356,66792.0,66791.0,0.076864]
[1729034847187,0.3608,66793.0,66792.0,0.074863]
[1729034848777,0.074859,66795.0,66792.0,0.074863]
[1729034848979,0.3608,66794.0,66793.0,0.074861]
[1729034849179,0.3608,66794.0,66793.0,0.184861]
[1729034849579,0.39747412,66794.0,66793.0,0.184861]
[1729034849799,0.44344151,66794.0,66793.0,0.184861]
[1729034850085,0.4723703,66794.0,66793.0,0.184861]
[1729034850288,0.5472303,66794.0,66793.0,0.184861]
[1729034855590,0.4723703,66794.0,66793.0,0.184861]
[1729034856682,0.5472303,66794.0,66793.0,0.184861]
[1729034857189,0.43566,66794.0,66793.0,0.184861]
[1729034857885,0.3608,66794.0,66793.0,0.184861]
[1729034858590,0.3608,66794.0,66793.0,0.176861]
[1729034859086,0.07486,66795.0,66794.0,0.07486]
[1729034859294,0.43566,66795.0,66794.0,0.07486]
[1729034860286,0.43566,66795.0,66794.0,0.08886]
[1729034860593,0.50126106,66795.0,66794.0,0.08886]
[1729034861593,0.14046106,66795.0,66794.0,0.08886]
[1729034862289,0.14045924,66795.0,66794.0,0.08886]
[1729034863788,0.07486,66795.0,66794.0,0.08886]
[1729034864791,0.14046014,66795.0,66794.0,0.08886]
[1729034866199,0.07486,66795.0,66794.0,0.08886]
[1729034866989,0.10378747,66795.0,66794.0,0.08886]
[1729034867191,0.14045951,66795.0,66794.0,0.08886]
[1729034867400,0.18642595,66795.0,66794.0,0.08886]
[1729034867599,0.22309787,66795.0,66794.0,0.08886]
[1729034867807,0.18642541,66795.0,66794.0,0.08886]
[1729034868699,0.33567211,66795.0,66794.0,0.08886]
[1729034869194,0.18642541,66795.0,66794.0,0.08886]
[1729034869703,0.54722541,66795.0,66794.0,0.08886]
[1729034871199,0.43566,66795.0,66794.0,0.08886]
[1729034872098,0.54722565,66795.0,66794.0,0.08886]
[1729034873305,0.43566,66795.0,66794.0,0.08886]
[1729034873906,0.43566,66795.0,66794.0,0.08086]
[1729034878109,0.07486,66795.0,66794.0,0.08086]
[1729034878309,0.43566,66795.0,66794.0,0.08086]
[1729034879809,0.3608,66795.0,66794.0,0.08086]
[1729034880611,0.39747292,66795.0,66794.0,0.08086]
[1729034880815,0.42640076,66795.0,66794.0,0.08086]
[1729034881113,0.02892784,66795.0,66794.0,0.08086]
[1729034885120,0.074854,66800.0,66794.0,0.08086]
[1729034885311,0.074854,66800.0,66799.0,0.184855]
[1729034886226,0.14044888,66800.0,66799.0,0.184855]
[1729034887221,0.14044888,66800.0,66799.0,0.186855]
[1729034888119,0.06559488,66800.0,66799.0,0.186855]
[1729034888618,0.06559488,66800.0,66799.0,0.188855]
[1729034889012,0.02892525,66800.0,66799.0,0.188855]
[1729034889214,0.02110734,66800.0,66799.0,0.298855]
[1729034889421,0.3608,66810.0,66805.0,0.074848]
[1729034889613,0.3608,66810.0,66809.0,0.074843]
[1729034889817,0.39746469,66810.0,66809.0,0.066843]
[1729034890418,0.106334,66818.0,66817.0,0.074834]
[1729034890621,0.14299535,66818.0,66817.0,0.184834]
[1729034890823,0.03666135,66818.0,66817.0,0.184834]
[1729034891122,0.3608,66819.0,66818.0,0.074833]
[1729034893011,0.3608,66819.0,66818.0,0.075833]
[1729034894720,0.3608,66819.0,66818.0,0.076833]
[1729034895125,0.3608,66819.0,66818.0,0.10374536]
[1729034895326,0.3608,66819.0,66818.0,0.21374536]
[1729034896015,0.3608,66819.0,66818.0,0.21274536]
[1729034896223,0.3608,66819.0,66818.0,0.21574536]
[1729034896418,0.3608,66819.0,66818.0,0.21774536]
[1729034897621,0.3608,66819.0,66818.0,0.10774536]
[1729034897822,0.3608,66819.0,66818.0,0.21774536]
[1729034899330,0.38971518,66819.0,66818.0,0.21774536]
[1729034900227,0.3608,66819.0,66818.0,0.21774536]
[1729034900622,0.074829,66822.0,66818.0,0.21774536]
[1729034900831,0.074829,66822.0,66821.0,0.18483]
[1729034901330,0.10374457,66822.0,66821.0,0.18483]
[1729034901934,0.074829,66822.0,66821.0,0.18483]
[1729034902233,0.36304541,66824.0,66821.0,0.18483]
[1729034902427,0.43787241,66824.0,66823.0,0.074828]
[1729034903135,0.46678798,66824.0,66823.0,0.074828]
[1729034904533,0.46678759,66824.0,66823.0,0.074828]
[1729034904933,0.46678759,66824.0,66823.0,0.066828]
[1729034907039,0.43787241,66824.0,66823.0,0.066828]
[1729034908034,0.46678759,66824.0,66823.0,0.066828]
[1729034912233,0.43787241,66824.0,66823.0,0.066828]
[1729034912543,0.44787241,66824.0,66823.0,0.066828]
[1729034913345,0.47678798,66824.0,66823.0,0.066828]
[1729034913543,0.51344485,66824.0,66823.0,0.066828]
[1729034914434,0.50344485,66824.0,66823.0,0.066828]
[1729034917042,0.54939175,66824.0,66823.0,0.066828]
[1729034918345,0.43787241,66824.0,66823.0,0.066828]
[1729034919243,0.46678798,66824.0,66823.0,0.066828]
[1729034919444,0.54939225,66824.0,66823.0,0.066828]
[1729034920348,0.54939225,66824.0,66823.0,0.058828]
[1729034920740,0.074832,66822.0,66821.0,0.07483]
[1729034920942,0.074832,66819.0,66818.0,0.02691236]
[1729034921248,0.074845,66810.0,66809.0,0.07484]
[1729034921560,0.1404196,66810.0,66809.0,0.1020798]
[1729034922252,0.2504196,66810.0,66809.0,0.1020798]
[1729034922649,0.2504196,66810.0,66809.0,0.1030798]
[1729034923043,0.29637582,66810.0,66809.0,0.0282398]
[1729034923244,0.2504196,66810.0,66809.0,0.0282398]
[1729034923445,0.29637675,66810.0,66809.0,0.0282398]
[1729034923648,0.2504196,66810.0,66809.0,0.0282398]
[1729034924042,0.6112196,66810.0,66809.0,0.0292398]
[1729034924247,1.70622107,66810.0,66809.0,0.0292398]
[1729034924554,0.074858,66798.0,66797.0,0.074857]
[1729034924741,0.6112326,66798.0,66797.0,0.074857]
[1729034925754,0.6112326,66798.0,66797.0,0.079857]
[1729034926345,0.5012326,66798.0,66797.0,0.079857]
[1729034926546,0.46457357,66798.0,66797.0,0.079857]
[1729034927650,0.46457357,66798.0,66797.0,0.074857]
[1729034927851,0.46457357,66798.0,66797.0,0.075857]
[1729034928654,0.46557357,66798.0,66797.0,0.076857]
[1729034929059,0.02991557,66798.0,66797.0,0.076857]
[1729034929453,0.07485,66803.0,66802.0,0.07485]
[1729034929644,0.10377518,66803.0,66802.0,0.18485]
[1729034930654,0.02892518,66803.0,66802.0,0.18485]
[1729034931446,0.02992518,66803.0,66802.0,0.18585]
[1729034931847,0.10477518,66803.0,66802.0,0.18585]
[1729034933450,0.46557518,66803.0,66802.0,0.18585]
[1729034934251,0.50224439,66803.0,66802.0,0.18585]
[1729034934451,0.42739439,66803.0,66802.0,0.18585]
[1729034934857,0.42739426,66803.0,66802.0,0.18585]
[1729034935067,0.42739426,66803.0,66802.0,0.21230362]
[1729034935755,0.42739426,66803.0,66802.0,0.20430362]
[1729034937154,0.46557497,66803.0,66802.0,0.20430362]
[1729034937659,0.39072497,66803.0,66802.0,0.20430362]
[1729034939049,0.3608,66803.0,66802.0,0.20330362]
[1729034939249,0.39072391,66803.0,66802.0,0.20330362]
[1729034940359,0.074837,66816.0,66808.0,0.074845]
[1729034940551,0.074837,66816.0,66803.0,0.07485]
[1729034940552,0.36304541,66824.0,66812.0,0.11]
[1729034940751,0.36304541,66824.0,66818.0,0.18483]
[1729034940959,0.074832,66822.0,66821.0,0.074828]
[1729034941157,0.435632,66822.0,66821.0,0.074828]
[1729034941758,0.545632,66822.0,66821.0,0.074828]
[1729034943459,0.545632,66822.0,66821.0,0.10150686]
[1729034946167,0.435632,66822.0,66821.0,0.10150686]
[1729034947463,0.074817,66833.0,66832.0,0.074817]
[1729034947660,0.3608,66834.0,66833.0,0.074817]
[1729034947960,0.3608,66834.0,66833.0,0.107717]
[1729034949653,0.39745093,66834.0,66833.0,0.107717]
[1729034950057,0.3608,66834.0,66833.0,0.107717]
[1729034950262,0.3608,66834.0,66833.0,0.108717]
[1729034950565,0.38971033,66834.0,66833.0,0.108717]
[1729034950955,0.38971033,66834.0,66833.0,0.109717]
[1729034951152,0.38971033,66834.0,66833.0,0.101717]
[1729034951759,0.61117657,66834.0,66833.0,0.068817]
[1729034951961,0.65711765,66834.0,66833.0,0.068817]
[1729034952159,0.65712009,66834.0,66833.0,0.002]
[1729034952354,0.61117657,66834.0,66833.0,0.002]
[1729034952559,0.65712187,66834.0,66833.0,0.002]
[1729034953663,0.83805838,66834.0,66833.0,0.002]
[1729034953862,0.89750407,66834.0,66833.0,0.002]
[1729034954066,0.89750404,66834.0,66833.0,0.002]
[1729034954367,0.8974981,66834.0,66833.0,0.002]
[1729034955065,0.6499528,66834.0,66833.0,0.002]
[1729034955364,0.54712434,66834.0,66833.0,0.076817]
[1729034955663,0.50117657,66834.0,66833.0,0.076817]
[1729034957367,0.46452533,66834.0,66833.0,0.076817]
[1729034957765,0.38971033,66834.0,66833.0,0.076817]
[1729034959668,0.3608,66834.0,66833.0,0.076817]
[1729034959967,0.38971124,66834.0,66833.0,0.076817]
[1729034960560,0.3608,66834.0,66833.0,0.076817]
[1729034961869,0.3608,66834.0,66833.0,0.075817]
[1729034962766,0.3608,66834.0,66833.0,0.074817]
[1729034963366,0.46452667,66834.0,66833.0,0.074817]
[1729034963673,0.46452667,66834.0,66833.0,0.076817]
[1729034964373,0.46452667,66834.0,66833.0,0.078817]
[1729034966583,0.38971167,66834.0,66833.0,0.070817]
[1729034966883,0.02891167,66834.0,66833.0,0.070817]
[1729034970182,0.3608,66838.0,66837.0,0.074812]
[1729034970675,0.46451928,66838.0,66837.0,0.074812]
[1729034972280,0.50116943,66838.0,66837.0,0.074812]
[1729034972477,0.5471074,66838.0,66837.0,0.074812]
[1729034973472,0.50116943,66838.0,66837.0,0.074812]
[1729034973873,0.42635843,66838.0,66837.0,0.244812]
[1729034979494,0.38970828,66838.0,66837.0,0.244812]
[1729034980881,0.02890828,66838.0,66837.0,0.244812]
[1729034981779,0.02890828,66838.0,66837.0,0.236812]
[1729034984379,0.02890784,66841.0,66837.0,0.236812]
[1729034984684,0.0655554,66841.0,66840.0,0.074809]
[1729034987288,0.06555538,66841.0,66837.0,0.066812]
[1729034987491,0.1114906,66840.0,66839.0,0.07481]
[1729034988986,0.1114906,66840.0,66838.0,0.074811]
[1729034988987,0.14877623,66840.0,66838.0,0.074811]
[1729034989189,0.26026683,66840.0,66837.0,0.066812]
[1729034989391,0.1114906,66839.0,66838.0,0.074811]
[1729034989576,0.23136006,66840.0,66839.0,0.07481]
[1729034989784,0.26026826,66840.0,66839.0,0.07481]
[1729034989975,0.37026826,66840.0,66839.0,0.07481]
[1729034990387,0.11149203,66840.0,66839.0,0.07481]
[1729034993189,0.27576219,66840.0,66839.0,0.07481]